bitfinex-derivatives/quotes_SOLF0:USTF0_20250505
["timestamp","ask_amount","ask_price","bid_price","bid_amount"]
[1746472129520,24.04,147.08,146.98,28.1153]
[1746472130222,6.8011,147.05,147.02,6.8018]
[1746472131421,6.8004,147.06,147.01,1.0]
[1746472131921,6.8007,147.05,147.03,6.8014]
[1746472133219,6.8005,147.06,147.03,6.8014]
[1746472133420,6.8005,147.06,147.04,6.8011]
[1746472134115,6.8002,147.07,147.05,6.8007]
[1746472134421,24.04,147.08,147.05,6.8007]
[1746472134621,4.0876,147.1,147.02,24.04]
[1746472134818,2.1064,147.1,147.02,24.04]
[1746472135514,6.7995,147.08,147.02,24.04]
[1746472135820,2.1064,147.1,147.02,24.04]
[1746472136215,6.7997,147.08,147.04,6.8007]
[1746472136423,2.1064,147.1,147.04,6.8007]
[1746472136721,6.8003,147.06,147.03,6.8014]
[1746472137422,6.8,147.07,147.04,6.8011]
[1746472139222,6.8003,147.06,147.04,6.8011]
[1746472139617,6.8003,147.06,147.03,6.8014]
[1746472140327,6.8009,147.05,147.02,30.8419]
[1746472140623,6.8009,147.05,147.02,6.8019]
[1746472140923,35.33375438,147.07,147.01,1.0]
[1746472141127,2.1289,147.06,147.01,1.0]
[1746472141522,2.0277,147.05,147.01,1.0]
[1746472142324,6.8018,147.03,147.01,1.0]
[1746472144424,6.8021,147.02,147.01,1.0]
[1746472145218,24.04,147.03,146.96,24.02]
[1746472145518,11.29375438,147.01,146.94,6.8058]
[1746472146024,6.8042,146.98,146.94,6.8058]
[1746472146726,6.8044,146.97,146.94,6.8058]
[1746472148227,6.8044,146.97,146.93,30.8461]
[1746472149226,6.8049,146.96,146.93,30.8461]
[1746472150727,6.8047,146.97,146.94,6.8056]
[1746472151529,35.33375438,147.02,146.93,24.04]
[1746472151729,24.04,147.02,146.93,24.04]
[1746472151929,24.04,147.02,146.93,25.9928]
[1746472152128,6.8037,146.99,146.96,6.8046]
[1746472153230,6.8032,147.0,146.93,25.9928]
[1746472153831,6.8032,147.0,146.97,6.804]
[1746472154023,6.8027,147.01,146.93,25.9928]
[1746472154224,24.04,147.02,146.93,25.9928]
[1746472155033,6.8043,146.98,146.95,6.8051]
[1746472155230,24.04,147.02,146.93,25.9928]
[1746472155429,11.29375438,147.01,146.93,25.9928]
[1746472155729,6.8047,146.97,146.94,6.8055]
[1746472158534,6.8047,146.97,146.95,6.8053]
[1746472158834,6.8047,146.97,146.93,24.04]
[1746472159234,13.23845438,147.01,146.93,24.04]
[1746472159531,13.23845438,147.01,146.9,27.9751]
[1746472159834,6.8063,146.93,146.9,24.04]
[1746472160533,24.04,146.96,146.9,24.04]
[1746472160936,6.8054,146.95,146.9,24.04]
[1746472161438,6.8054,146.95,146.91,6.8068]
[1746472161733,6.8054,146.95,146.92,6.8065]
[1746472162436,6.806,146.94,146.91,6.807]
[1746472163538,6.806,146.94,146.92,6.8066]
[1746472164240,6.8063,146.93,146.91,6.8071]
[1746472165739,6.806,146.94,146.92,6.8066]
[1746472165931,6.806,146.94,146.9,24.04]
[1746472166131,24.04,146.96,146.9,24.04]
[1746472166338,6.8065,146.93,146.91,6.807]
[1746472168935,24.04,146.96,146.9,24.04]
[1746472169143,24.04,146.99,146.9,26.1356]
[1746472169336,24.04,146.99,146.9,28.2493]
[1746472169538,24.04,146.99,146.93,6.8061]
[1746472169729,24.04,146.99,146.9,28.2493]
[1746472170041,6.8051,146.96,146.94,6.8057]
[1746472170240,6.8051,146.96,146.9,28.2493]
[1746472170442,24.04,146.99,146.9,28.2493]
[1746472170635,6.8051,146.96,146.9,28.2493]
[1746472171744,24.04,146.99,146.9,28.2493]
[1746472171937,26.0874,147.02,146.92,11.29375438]
[1746472172238,24.04,147.02,146.92,11.29375438]
[1746472172542,6.8036,146.99,146.92,11.29375438]
[1746472172735,6.8036,146.99,146.97,6.8041]
[1746472173643,6.8032,147.0,146.97,6.8041]
[1746472174244,6.8035,146.99,146.97,6.8041]
[1746472175642,6.8035,146.99,146.96,6.8046]
[1746472175842,24.04,147.02,146.95,24.04]
[1746472176037,35.33375438,147.02,146.95,24.04]
[1746472176237,4.1247,147.01,146.94,6.8057]
[1746472176443,6.8048,146.97,146.94,6.8057]
[1746472176740,4.1247,147.01,146.94,6.8057]
[1746472178344,6.8048,146.97,146.94,6.8057]
[1746472179544,24.04,147.02,146.92,35.33375438]
[1746472179845,2.0731,147.04,146.95,11.29375438]
[1746472180044,6.8024,147.02,146.99,6.8032]
[1746472180746,6.8026,147.01,146.99,6.8032]
[1746472183444,6.8023,147.02,146.99,6.8032]
[1746472185349,2.0731,147.04,146.99,6.8032]
[1746472185350,6.8026,147.01,146.99,6.8032]
[1746472185844,2.0731,147.04,147.0,6.8029]
[1746472186049,6.8022,147.02,147.0,6.8029]
[1746472189955,6.8018,147.03,147.0,6.8029]
[1746472191060,6.8022,147.02,147.0,6.8029]
[1746472194259,25.9565,147.06,147.01,6.8022]
[1746472194759,6.8014,147.04,147.01,6.8022]
[1746472198965,6.8017,147.03,147.01,6.8022]
[1746472201167,6.8014,147.04,147.01,6.8022]
[1746472201374,24.02,147.06,146.96,30.2915]
[1746472201766,6.8009,147.05,147.02,6.8017]
[1746472201966,6.8009,147.05,147.0,24.02]
[1746472202372,6.8009,147.05,147.02,6.8017]
[1746472202874,24.02,147.06,147.0,24.02]
[1746472203075,1.9816,147.08,147.0,24.02]
[1746472203475,6.8012,147.04,147.02,6.802]
[1746472205473,6.8009,147.05,147.02,6.802]
[1746472205877,6.8009,147.05,147.03,6.8015]
[1746472206078,6.8003,147.06,147.0,24.02]
[1746472206480,6.8009,147.05,147.02,6.8019]
[1746472207079,6.8012,147.04,147.02,6.8019]
[1746472207777,13.27535438,147.08,147.0,24.02]
[1746472207976,2.0792,147.07,147.0,24.02]
[1746472208377,6.8018,147.03,147.0,30.8228]
[1746472209976,6.8021,147.02,147.0,30.8228]
[1746472210173,24.02,147.06,147.0,30.8228]
[1746472210977,6.802,147.03,147.0,30.8228]
[1746472211374,24.02,147.06,147.0,24.02]
[1746472211573,24.02,147.06,146.97,24.02]
[1746472211774,24.02,147.06,146.98,6.8037]
[1746472212272,6.803,147.01,146.98,6.8037]
[1746472212480,24.02,147.06,146.97,30.8242]
[1746472212679,24.02,147.06,146.97,24.02]
[1746472212974,24.02,147.06,147.02,6.8019]
[1746472213275,6.8011,147.05,146.97,24.02]
[1746472213476,24.02,147.06,146.97,24.02]
[1746472213676,24.02,147.06,147.01,6.8025]
[1746472213871,6.8014,147.04,147.01,6.8025]
[1746472218183,24.02,147.06,147.01,6.8025]
[1746472218980,24.02,147.06,146.97,24.02]
[1746472219283,6.8028,147.01,146.97,24.02]
[1746472219682,6.8028,147.01,146.98,6.8036]
[1746472222282,6.803,147.0,146.98,6.8036]
[1746472222582,24.02,147.06,146.98,6.8036]
[1746472222779,6.8028,147.01,146.98,6.8036]
[1746472226487,6.803,147.0,146.98,6.8036]
[1746472226688,24.02,147.06,146.97,30.8242]
[1746472227089,6.8032,147.0,146.97,30.8242]
[1746472227586,11.29375438,147.04,146.97,24.02]
[1746472227786,11.29375438,147.04,146.96,124.67571158]
[1746472227988,2.0538,147.03,146.96,117.87111158]
[1746472228189,6.8042,146.98,146.96,117.87111158]
[1746472229288,6.8036,146.99,146.96,124.67581158]
[1746472230484,6.8041,146.98,146.96,124.67581158]
[1746472230785,24.02,147.02,146.95,1.0]
[1746472230989,6.8046,146.97,146.95,1.0]
[1746472234588,6.8046,146.97,146.95,7.8053]
[1746472236496,6.8046,146.97,146.95,1.0]
[1746472236789,6.8049,146.96,146.95,1.0]
[1746472241896,24.02,146.98,146.95,1.0]
[1746472242098,24.02,146.98,146.95,7.805]
[1746472242290,6.8042,146.98,146.95,7.805]
[1746472244001,6.8044,146.97,146.95,7.805]
[1746472244500,6.8041,146.98,146.95,7.805]
[1746472244797,24.02,147.01,146.95,1.0]
[1746472244992,24.02,147.01,146.95,25.02]
[1746472245195,6.8033,147.0,146.97,6.8042]
[1746472246399,6.8035,146.99,146.97,6.8042]
[1746472248201,6.8032,147.0,146.97,6.8042]
[1746472248992,30.8229,147.01,146.95,25.02]
[1746472249393,11.29375438,147.04,146.97,6.8041]
[1746472249394,6.8035,146.99,146.97,6.8041]
[1746472249703,6.8035,146.99,146.95,25.02]
[1746472249704,35.31375438,147.04,146.95,25.02]
[1746472250601,6.8037,146.99,146.96,6.8045]
[1746472250801,6.8037,146.99,146.95,25.02]
[1746472251300,6.8037,146.99,146.96,6.8046]
[1746472252007,6.8033,147.0,146.97,6.8044]
[1746472252400,35.31375438,147.04,146.97,6.8044]
[1746472253206,6.8031,147.0,146.97,6.8044]
[1746472253601,35.31375438,147.04,146.98,6.8039]
[1746472253807,6.8025,147.02,146.95,25.02]
[1746472254397,6.8026,147.01,146.95,25.02]
[1746472254599,24.02,147.04,146.95,25.02]
[1746472254801,24.02,147.04,146.97,6.8041]
[1746472255407,24.02,147.04,146.98,6.8039]
[1746472255807,6.8029,147.01,146.98,6.8039]
[1746472256203,24.02,147.04,146.99,6.8035]
[1746472256410,6.8023,147.02,146.95,36.31375438]
[1746472256708,538.88,147.07,147.01,6.8023]
[1746472256902,562.9,147.07,147.01,6.8023]
[1746472257807,6.8017,147.03,147.0,6.8028]
[1746472258409,562.9,147.07,146.99,30.8233]
[1746472258611,562.9,147.07,146.99,24.02]
[1746472258811,1.9681,147.06,146.99,24.02]
[1746472259013,6.8025,147.02,146.99,6.8034]
[1746472259409,6.8025,147.02,146.97,1.9825]
[1746472259711,6.8025,147.02,146.99,6.8032]
[1746472260106,24.02,147.03,146.96,24.02]
[1746472261114,6.8037,146.99,146.96,30.8246]
[1746472261414,6.8037,146.99,146.96,24.02]
[1746472262405,6.8032,147.0,146.97,6.8041]
[1746472262611,24.02,147.03,146.96,24.02]
[1746472262913,30.822,147.03,147.0,6.8028]
[1746472263117,2.1015,147.05,146.96,24.02]
[1746472263619,2.1015,147.05,146.97,6.8042]
[1746472264117,2.1015,147.05,146.96,30.8246]
[1746472264514,2.1015,147.05,146.96,24.02]
[1746472264923,6.8035,146.99,146.96,30.8246]
[1746472265216,24.0,147.02,146.96,24.02]
[1746472266018,6.8033,147.0,146.97,6.8044]
[1746472266218,24.0,147.02,146.96,24.02]
[1746472266518,24.0,147.02,146.96,30.8245]
[1746472267119,6.8034,147.0,146.97,6.8042]
[1746472268714,6.8035,146.99,146.97,6.8042]
[1746472268921,24.0,147.02,146.97,6.8042]
[1746472269319,6.8035,146.99,146.96,30.8247]
[1746472269517,24.0,147.02,146.96,24.02]
[1746472269821,6.804,146.98,146.96,24.02]
[1746472270217,24.0,147.02,146.95,2.0]
[1746472270521,26.1104,147.02,146.95,2.0]
[1746472271523,6.8049,146.96,146.95,2.0]
[1746472290650,6.8072,146.91,146.9,24.02]
[1746472291243,6.8072,146.91,146.87,30.8288]
[1746472291736,13.25875438,146.97,146.87,24.02]
[1746472291737,6.8058,146.94,146.87,24.02]
[1746472291941,1.9785,146.96,146.87,24.02]
[1746472292339,1.9785,146.96,146.87,30.8288]
[1746472292844,6.808,146.9,146.87,30.8288]
[1746472293746,6.8073,146.91,146.88,6.8085]
[1746472294148,35.29375438,146.94,146.87,24.02]
[1746472294339,24.0,146.94,146.9,6.8074]
[1746472295148,6.8065,146.93,146.9,6.8074]
[1746472296550,30.806,146.94,146.91,6.8072]
[1746472296748,24.0,146.94,146.87,24.02]
[1746472296952,25.965,146.97,146.87,24.02]
[1746472297248,6.8059,146.94,146.91,6.8069]
[1746472298252,6.8059,146.94,146.92,6.8066]
[1746472298551,6.8052,146.96,146.87,24.02]
[1746472298946,24.0,146.97,146.92,6.8063]
[1746472299344,6.8053,146.95,146.92,6.8063]
[1746472299849,6.8053,146.95,146.93,6.8062]
[1746472306457,24.0,146.97,146.92,6.8065]
[1746472307559,24.0,146.97,146.91,6.807]
[1746472307756,6.8062,146.94,146.91,6.807]
[1746472308661,6.8056,146.95,146.92,6.8067]
[1746472309659,6.8058,146.94,146.92,6.8067]
[1746472310752,6.8058,146.94,146.88,24.0]
[1746472310753,24.0,146.97,146.93,6.8062]
[1746472310946,24.0,146.97,146.88,35.29375438]
[1746472311151,6.8054,146.95,146.93,6.806]
[1746472313463,6.8051,146.96,146.93,6.806]
[1746472313761,6.8051,146.96,146.94,6.8057]
[1746472314359,6.8051,146.96,146.93,6.806]
[1746472314854,6.8054,146.95,146.93,6.806]
[1746472319762,6.8054,146.95,146.93,7.806]
[1746472320565,6.8054,146.95,146.93,1.0]
[1746472320862,6.8058,146.94,146.93,1.0]
[1746472321059,35.29375438,147.0,146.93,1.0]
[1746472321263,6.8056,146.95,146.93,1.0]
[1746472321658,6.8056,146.95,146.93,7.8062]
[1746472322066,6.8056,146.95,146.93,1.0]
[1746472324269,6.8056,146.95,146.93,7.8062]
[1746472325268,6.8056,146.95,146.93,1.0]
[1746472326468,6.8058,146.94,146.93,1.0]
[1746472326973,0.3568,146.94,146.93,1.0]
[1746472327162,13.29662508,147.09,146.93,245.09812508]
[1746472327463,13.29662508,147.09,146.99,6.8033]
[1746472327464,11.29880744,147.08,146.99,6.8033]
[1746472327657,6.8015,147.04,146.99,6.8033]
[1746472327860,11.29880744,147.08,146.98,24.0]
[1746472328066,6.801,147.05,147.0,6.8027]
[1746472328367,6.801,147.05,146.98,24.0]
[1746472328565,6.801,147.05,147.01,6.8023]
[1746472329968,6.801,147.05,147.02,6.802]
[1746472331271,6.8013,147.04,146.98,24.0]
[1746472332763,6.8013,147.04,147.01,6.8024]
[1746472333771,6.8008,147.05,147.01,6.8024]
[1746472334371,30.8004,147.06,147.02,6.802]
[1746472334667,24.0,147.06,147.02,6.802]
[1746472335074,6.801,147.05,147.02,6.802]
[1746472338476,6.8012,147.04,147.01,6.8024]
[1746472338668,24.0,147.06,147.01,6.8024]
[1746472339274,6.8009,147.05,147.02,6.8021]
[1746472339577,6.8009,147.05,146.98,24.0]
[1746472341275,6.8009,147.05,147.01,6.8021]
[1746472345478,30.8003,147.06,146.98,35.29880744]
[1746472345682,25.9985,147.09,146.98,35.29880744]
[1746472345980,25.9985,147.09,147.04,6.8009]
[1746472346177,6.8,147.07,147.04,6.8009]
[1746472346480,25.9985,147.09,147.03,6.8014]
[1746472346784,6.7998,147.07,147.02,24.0]
[1746472346979,6.7998,147.07,147.03,6.8015]
[1746472347483,6.7998,147.07,147.03,6.8014]
[1746472347682,6.8003,147.06,147.02,24.0]
[1746472348379,6.8007,147.05,147.02,24.0]
[1746472349382,6.8012,147.04,147.02,24.0]
[1746472350286,6.8009,147.05,147.02,30.802]
[1746472350484,25.9985,147.09,147.02,24.0]
[1746472350884,6.801,147.05,147.02,30.8021]
[1746472351078,25.9985,147.09,147.02,30.8021]
[1746472351387,6.8014,147.04,147.02,24.0]
[1746472351581,25.9985,147.09,147.02,24.0]
[1746472351786,11.29880744,147.08,147.02,24.0]
[1746472351988,6.8016,147.03,147.02,24.0]
[1746472355288,6.8014,147.04,147.02,24.0]
[1746472355586,11.29880744,147.08,147.02,24.0]
[1746472356087,25.9985,147.09,147.02,24.0]
[1746472356387,6.801,147.05,147.02,30.8021]
[1746472359890,6.801,147.05,147.02,24.0]
[1746472360590,6.801,147.05,147.02,30.8021]
[1746472362393,6.8013,147.04,147.02,24.0]
[1746472364289,6.8009,147.05,147.02,30.8018]
[1746472365696,6.8012,147.04,147.02,30.8018]
[1746472365897,6.8012,147.04,147.02,24.0]
[1746472369601,6.8016,147.03,147.02,24.0]
[1746472371806,6.8014,147.04,147.02,24.0]
[1746472372306,6.8016,147.03,147.02,24.0]
[1746472373407,6.8014,147.04,147.02,24.0]
[1746472379609,6.8014,147.04,147.02,30.8021]
[1746472380004,6.8014,147.04,147.02,24.0]
[1746472381414,6.8016,147.03,147.02,24.0]
[1746472381709,7.22900457,147.08,147.02,24.0]
[1746472381914,6.8014,147.04,147.02,24.0]
[1746472384016,6.8014,147.04,147.02,30.8021]
[1746472384413,6.801,147.05,147.02,30.8021]
[1746472385314,6.8012,147.04,147.02,30.8021]
[1746472386112,6.801,147.05,147.02,30.8021]
[1746472386413,7.22900457,147.08,147.02,30.8021]
[1746472387411,6.8014,147.04,147.02,24.0]
[1746472388616,6.8016,147.03,147.02,24.0]
[1746472389516,6.8026,147.01,146.99,31.21109753]
[1746472389716,6.8026,147.01,146.99,23.98]
[1746472391216,6.803,147.0,146.99,23.98]
[1746472391717,6.8028,147.01,146.99,23.98]
[1746472399220,6.803,147.0,146.99,23.98]
[1746472399414,7.23109753,147.02,146.98,1.0]
[1746472400513,6.8035,146.99,146.98,1.0]
[1746472412728,8.895,146.99,146.98,1.0]
[1746472418530,6.8035,146.99,146.98,1.0]
[1746472419333,30.8028,147.01,146.98,1.0]
[1746472419531,2.0133,147.03,146.98,1.0]
[1746472420237,6.8031,147.0,146.98,1.0]
[1746472421141,6.8035,146.99,146.98,1.0]
[1746472435948,6.8033,147.0,146.98,1.0]
[1746472436346,6.8033,147.0,146.98,7.8038]
[1746472436646,6.8035,146.99,146.98,1.0]
[1746472436848,7.23109753,147.02,146.98,1.0]
[1746472437049,7.23109753,147.02,146.98,7.8039]
[1746472437551,6.8026,147.01,146.98,7.8039]
[1746472437754,7.23109753,147.02,146.98,7.8039]
[1746472438252,6.8029,147.01,146.98,7.8039]
[1746472439053,6.8029,147.01,146.99,6.8034]
[1746472439253,6.8029,147.01,146.98,1.0]
[1746472439254,6.8023,147.02,146.98,8.23109753]
[1746472439753,6.8023,147.02,146.99,6.803]
[1746472440855,31.21109753,147.04,146.98,15.03459753]
[1746472441057,7.23109753,147.02,146.98,1.0]
[1746472441854,6.8031,147.0,146.98,1.0]
[1746472443256,6.8028,147.01,146.98,7.8039]
[1746472443458,7.23109753,147.02,146.98,7.8039]
[1746472444251,14.03349753,147.02,146.99,6.8034]
[1746472445554,6.8018,147.03,147.0,6.8028]
[1746472445754,6.8018,147.03,146.98,9.23109753]
[1746472445953,7.23109753,147.02,146.98,2.0]
[1746472446154,6.8029,147.01,146.98,8.8037]
[1746472446355,7.23109753,147.02,146.98,2.0]
[1746472446662,6.8034,147.0,146.98,2.0]
[1746472447258,7.23109753,147.02,146.98,2.0]
[1746472447259,6.8035,146.99,146.98,2.0]
[1746472452864,7.23109753,147.02,146.98,2.0]
[1746472453369,6.8029,147.01,146.98,8.8037]
[1746472454865,6.8029,147.01,146.99,6.8034]
[1746472455364,6.803,147.0,146.98,8.8037]
[1746472456064,6.8028,147.01,146.98,8.8037]
[1746472457165,6.803,147.0,146.98,8.8037]
[1746472460265,6.8028,147.01,146.99,6.8035]
[1746472460969,31.21109753,147.04,146.98,2.0]
[1746472461166,9.32369753,147.06,146.98,9.23109753]
[1746472461663,6.8015,147.04,147.02,6.802]
[1746472462567,6.8015,147.04,147.01,6.8024]
[1746472462864,6.8008,147.05,147.0,23.98]
[1746472463066,6.8008,147.05,147.02,6.8019]
[1746472464064,6.8008,147.05,147.01,6.8023]
[1746472464363,6.8012,147.04,147.01,6.8023]
[1746472464870,14.03199753,147.05,147.01,6.8023]
[1746472465770,14.03199753,147.05,147.02,6.802]
[1746472468273,7.23109753,147.05,147.0,23.98]
[1746472469272,14.03219753,147.05,147.01,6.8022]
[1746472470474,14.03219753,147.05,147.02,6.802]
[1746472470769,14.03219753,147.05,147.0,23.98]
[1746472471274,6.8012,147.04,147.01,6.8023]
[1746472474773,7.23109753,147.03,147.0,23.98]
[1746472474976,7.23109753,147.03,146.98,2.0]
[1746472475876,6.8024,147.02,146.99,6.8032]
[1746472482279,6.8024,147.02,146.98,8.8037]
[1746472482582,6.8024,147.02,146.98,2.0]
[1746472483282,6.8024,147.02,146.99,6.8035]
[1746472484483,7.23109753,147.03,146.98,2.0]
[1746472484685,7.23109753,147.01,146.98,2.0]
[1746472485186,6.8035,146.99,146.98,2.0]
[1746472487486,14.03459753,146.99,146.98,2.0]
[1746472488586,6.8049,146.96,146.94,23.96]
[1746472488785,6.8049,146.96,146.93,1.0]
[1746472488980,7.23109753,146.97,146.93,1.0]
[1746472490085,7.23109753,146.95,146.93,1.0]
[1746472490492,6.8058,146.94,146.93,1.0]
[1746472492193,6.8074,146.91,146.87,37.99989753]
[1746472493488,6.8074,146.91,146.88,6.8085]
[1746472493698,6.8069,146.92,146.88,6.8085]
[1746472494694,6.8072,146.91,146.88,6.8085]
[1746472501592,31.19109753,146.95,146.89,7.23109753]
[1746472501593,6.8069,146.92,146.89,7.23109753]
[1746472501795,31.21109753,146.98,146.91,7.23109753]
[1746472502290,23.98,146.98,146.95,7.23109753]
[1746472502490,572.14039753,147.01,146.95,7.23109753]
[1746472502686,6.8048,146.97,146.95,7.23109753]
[1746472503293,6.8041,146.98,146.95,14.03639753]
[1746472503494,572.14039753,147.01,146.95,7.23109753]
[1746472503797,564.9093,147.01,146.92,2.0169]
[1746472503989,564.9093,147.01,146.94,6.8056]
[1746472504499,6.8044,146.98,146.94,6.8056]
[1746472504998,564.9093,147.01,146.94,6.8056]
[1746472505902,6.8042,146.98,146.94,6.8056]
[1746472506296,564.9093,147.01,146.94,6.8056]
[1746472506507,26.0093,147.01,146.94,6.8056]
[1746472507197,6.8042,146.98,146.94,6.8056]
[1746472507394,6.8042,146.98,146.95,6.8053]
[1746472507703,26.0093,147.01,146.92,2.0169]
[1746472508708,6.8038,146.99,146.95,6.8049]
[1746472509401,6.804,146.98,146.95,6.8049]
[1746472510400,6.804,146.98,146.94,1.0]
[1746472510805,6.804,146.98,146.95,6.8051]
[1746472511007,6.804,146.98,146.94,1.0]
[1746472511506,6.8045,146.97,146.95,6.805]
[1746472512108,6.8042,146.98,146.95,6.805]
[1746472512405,6.8042,146.98,146.96,6.8048]
[1746472513199,26.0093,147.01,146.96,6.8048]
[1746472513200,6.8038,146.99,146.96,6.8048]
[1746472513507,6.8038,146.99,146.97,6.8044]
[1746472513805,6.8038,146.99,146.96,6.8046]
[1746472514209,6.8038,146.99,146.95,23.96]
[1746472514401,6.8033,147.0,146.95,23.96]
[1746472514708,23.98,147.01,146.95,23.96]
[1746472515210,6.8035,146.99,146.97,6.8042]
[1746472515410,23.98,147.01,146.95,23.96]
[1746472515904,6.8035,146.99,146.95,23.96]
[1746472516109,6.8035,146.99,146.97,6.8042]
[1746472518206,6.8035,146.99,146.96,6.8046]
[1746472519012,6.8035,146.99,146.97,6.8044]
[1746472522418,6.8033,147.0,146.97,6.8044]
[1746472522609,11.30629956,147.03,146.95,23.96]
[1746472523008,6.8033,147.0,146.95,23.96]
[1746472523215,6.8033,147.0,146.97,6.8041]
[1746472524729,6.8033,147.0,146.98,6.8039]
[1746472528731,6.8028,147.01,146.99,6.8035]
[1746472529533,23.96,147.04,146.97,7.23406025]
[1746472529738,4.0076,147.06,146.99,7.23406025]
[1746472530031,6.8014,147.04,147.0,23.96]
[1746472530332,7.23406025,147.06,147.0,23.96]
[1746472530635,6.8014,147.04,147.01,6.8022]
[1746472530834,6.8014,147.04,147.0,23.96]
[1746472531229,6.8014,147.04,147.01,6.8025]
[1746472532935,6.8014,147.04,147.02,6.802]
[1746472533836,6.8014,147.04,147.01,6.8024]
[1746472536037,6.8014,147.04,147.02,6.8021]
[1746472537037,6.8006,147.06,147.03,6.8016]
[1746472537437,6.8006,147.06,147.0,23.96]
[1746472537637,6.8006,147.06,147.03,6.8014]
[1746472537836,6.8006,147.06,147.0,23.96]
[1746472538135,6.8006,147.06,147.03,6.8014]
[1746472538338,6.8,147.07,147.0,23.96]
[1746472538635,13.5945,147.13,147.01,23.94]
[1746472538836,23.94,147.13,147.02,13.43008407]
[1746472539035,6.7987,147.1,147.02,13.43008407]
[1746472539231,6.7987,147.1,147.03,2.0133]
[1746472539431,23.94,147.13,147.03,2.0133]
[1746472539938,23.94,147.13,147.07,6.7997]
[1746472540336,23.94,147.13,147.06,23.94]
[1746472541144,6.7987,147.1,147.06,30.7402]
[1746472541441,23.94,147.13,147.06,30.7402]
[1746472542942,23.94,147.13,147.07,6.7997]
[1746472543145,23.94,147.13,147.06,23.94]
[1746472543443,6.7982,147.11,147.06,23.94]
[1746472543644,6.7982,147.11,147.08,6.7993]
[1746472545345,6.7982,147.11,147.07,6.7996]
[1746472545838,6.7982,147.11,147.07,6.7994]
[1746472546046,6.7982,147.11,147.06,23.94]
[1746472547446,6.7982,147.11,147.08,6.7993]
[1746472548442,6.7984,147.1,147.06,23.94]
[1746472548636,6.7984,147.1,147.07,6.7995]
[1746472549045,6.7984,147.1,147.08,6.7993]
[1746472549348,6.7984,147.1,147.06,23.94]
[1746472549551,6.7984,147.1,147.07,6.7995]
[1746472551948,6.7984,147.1,147.08,6.7993]
[1746472558163,6.7984,147.1,147.08,14.02120813]
[1746472558564,6.7988,147.09,147.08,7.22190813]
[1746472558760,11.21680813,147.12,147.06,31.16190813]
[1746472559264,11.21680813,147.12,147.06,37.96180813]
[1746472559464,11.21680813,147.12,147.06,31.16190813]
[1746472559766,6.7988,147.1,147.07,6.7997]
[1746472560765,6.7989,147.09,147.06,37.96190813]
[1746472561264,6.7989,147.09,147.06,31.16190813]
[1746472561668,6.7986,147.1,147.07,6.7997]
[1746472562766,6.7986,147.1,147.08,7.22190813]
[1746472564171,3.9949,147.12,147.08,7.22190813]
[1746472565070,6.7987,147.1,147.08,7.22190813]
[1746472565769,6.7988,147.09,147.08,7.22190813]
[1746472566271,3.9949,147.12,147.08,7.22190813]
[1746472566874,6.7981,147.11,147.08,14.02100813]
[1746472568768,6.7981,147.11,147.08,7.22190813]